bitfinex-derivatives/quotes_SOLF0:USTF0_20251108
["timestamp","ask_amount","ask_price","bid_price","bid_amount"]
[1762582679551,0.43,161.04,161.0,0.04637866]
[1762582680657,0.43,161.07,161.0,3.16637866]
[1762582681753,6.0212,161.06,161.0,3.16637866]
[1762582682057,0.43,161.06,161.0,3.16637866]
[1762582682653,1.08082926,161.08,161.0,3.16637866]
[1762582683456,1.08082926,161.08,161.03,2.99]
[1762582683654,1.08082926,161.08,161.02,5.5922]
[1762582683655,1.08082926,161.08,161.05,2.99]
[1762582684561,18.68,161.14,161.05,2.99]
[1762582684761,0.43,161.1,161.08,0.04332212]
[1762582685162,1.51044335,161.11,161.08,0.04332212]
[1762582685462,1.08037627,161.13,161.08,3.03332212]
[1762582685654,0.43,161.12,161.08,3.03332212]
[1762582685851,0.43,161.12,161.08,0.04332212]
[1762582686356,0.43,161.09,161.08,0.04332212]
[1762582688164,139.5899,161.1,161.08,0.04332212]
[1762582688465,1.08037627,161.13,161.08,0.04332212]
[1762582688466,0.43,161.12,161.08,0.04332212]
[1762582689064,0.43,161.12,161.08,3.03332212]
[1762582689065,6.0191,161.12,161.08,3.03332212]
[1762582690357,1.51037627,161.13,161.08,3.03332212]
[1762582690558,0.43,161.12,161.08,0.04332212]
[1762582691169,6.0191,161.12,161.08,3.03332212]
[1762582691555,0.43,161.11,161.08,0.04332212]
[1762582692165,134.0,161.11,161.08,3.03332212]
[1762582692362,0.43,161.1,161.08,0.04332212]
[1762582692763,0.43,161.09,161.08,0.04332212]
[1762582694567,0.39,161.05,160.96,2.99]
[1762582695074,0.39,161.09,160.96,2.99]
[1762582695265,5.5909,161.07,160.97,2.99]
[1762582695457,5.5909,161.07,161.0,0.04217003]
[1762582695662,0.0419699,161.04,161.01,2.99]
[1762582695865,0.0419699,161.04,161.01,3.03276282]
[1762582696872,0.4319699,161.04,161.01,0.04276282]
[1762582697668,0.39,161.03,161.01,0.04276282]
[1762582699173,0.39,161.02,161.01,0.04276282]
[1762582705067,139.5924,161.03,161.01,0.04276282]
[1762582705068,139.9824,161.03,161.01,0.04276282]
[1762582708671,139.5924,161.03,161.01,0.04276282]
[1762582711173,0.39,161.02,161.01,0.04276282]
[1762582716581,0.0419699,161.04,161.01,3.01276282]
[1762582716884,0.4319699,161.04,161.01,0.04276282]
[1762582717781,0.39,161.02,161.01,0.04276282]
[1762582722986,2.20249553,161.02,161.01,0.04276282]
[1762582723985,0.39,160.99,160.95,3.04]
[1762582724190,2.20249553,160.99,160.95,3.04]
[1762582724792,0.39,160.98,160.95,3.04]
[1762582724977,0.0404858,160.98,160.95,3.0875306]
[1762582728090,1.81249553,160.97,160.95,3.0875306]
[1762582728486,2.2,161.06,160.99,3.04]
[1762582728691,1.81249553,161.04,160.99,3.04]
[1762582728990,2.2,161.03,160.99,3.04]
[1762582729188,2.2,161.02,160.96,3.04]
[1762582729396,2.2,161.0,160.97,0.04735596]
[1762582729692,1.81249553,160.99,160.97,3.08535237]
[1762582731494,2.24460292,161.0,160.97,0.04535237]
[1762582731687,2.24460292,161.0,160.97,3.08535237]
[1762582733288,2.2,160.99,160.97,0.04535237]
[1762582733587,7.83780292,161.0,160.97,3.08535237]
[1762582734097,7.7936,160.99,160.97,0.04535237]
[1762582734291,2.2,160.98,160.97,0.04535237]
[1762582738185,1.81249553,160.99,160.97,3.08535237]
[1762582740190,4.01249553,160.99,160.97,0.04535237]
[1762582740385,2.2,160.99,160.97,0.04535237]
[1762582740795,0.04460292,161.0,160.97,3.08535237]
[1762582740995,2.24460292,161.0,160.97,3.08535237]
[1762582742009,2.2,160.98,160.97,0.04535237]
[1762582742192,2.24460292,161.0,160.97,3.08535237]
[1762582742394,0.04460292,161.0,160.97,3.08535237]
[1762582743498,0.04460292,161.0,160.99,3.01]
[1762582745305,2.24460292,161.0,160.97,0.04535237]
[1762582745902,2.24460292,161.0,160.97,3.05535237]
[1762582747702,2.24460292,161.0,160.97,0.04535237]
[1762582749100,4.01249553,160.98,160.97,0.04535237]
[1762582750006,4.01249553,160.98,160.91,3.01]
[1762582750007,2.2,160.95,160.91,3.01]
[1762582750308,2.2,160.94,160.91,3.01]
[1762582750807,7.7952,160.94,160.91,3.01]
[1762582751103,7.7952,160.94,160.91,0.0414093]
[1762582751104,2.2,160.93,160.91,0.0414093]
[1762582752593,0.0462919,160.94,160.91,3.0514093]
[1762582753396,0.0462919,160.94,160.93,3.01]
[1762582753897,0.0462919,160.94,160.91,0.0414093]
[1762582754100,2.2462919,160.94,160.91,0.0414093]
[1762582754703,7.8416919,160.94,160.91,0.0414093]
[1762582755007,2.2,160.93,160.91,0.0414093]
[1762582755200,4.01249553,160.93,160.91,0.0414093]
[1762582755603,1.81249553,160.93,160.91,3.0514093]
[1762582757903,1.81249553,160.93,160.91,0.0414093]
[1762582759910,9.60819553,160.93,160.91,0.0414093]
[1762582760606,4.01249553,160.93,160.91,0.0414093]
[1762582761909,2.2,160.92,160.91,0.0414093]
[1762582762704,7.7957,160.93,160.91,0.0414093]
[1762582762907,2.2,160.93,160.91,0.0414093]
[1762582764007,1.85878743,160.94,160.91,0.0414093]
[1762582764209,4.05878743,160.94,160.91,0.0414093]
[1762582764410,2.2,160.93,160.91,0.0414093]
[1762582764913,7.7957,160.93,160.91,0.0414093]
[1762582766211,5.5957,160.93,160.92,3.01]
[1762582766416,7.7957,160.93,160.91,0.0414093]
[1762582767314,2.2,160.92,160.91,0.0414093]
[1762582768409,4.01249553,160.92,160.91,0.0414093]
[1762582769617,2.2,160.92,160.91,0.0414093]
[1762582769916,1.81249553,160.93,160.91,0.0414093]
[1762582770114,2.2,160.92,160.91,0.0414093]
[1762582773828,2.2,160.92,160.78,11.49079542]
[1762582773829,7.757,160.89,160.82,3.14]
[1762582774030,3.97249553,160.88,160.82,3.14]
[1762582774237,3.97249553,160.86,160.82,3.14]
[1762582774424,2.16,160.85,160.82,3.14]
[1762582774828,3.97249553,160.86,160.82,3.14]
[1762582775035,0.04665655,160.85,160.82,3.18225307]
[1762582777039,2.20665655,160.85,160.82,3.18225307]
[1762582777638,2.16,160.84,160.82,0.04225307]
[1762582778741,5.64515655,160.85,160.82,3.18225307]
[1762582778944,0.04665655,160.85,160.82,3.18225307]
[1762582781248,2.20665655,160.85,160.82,0.04225307]
[1762582781537,3.97249553,160.83,160.82,0.04225307]
[1762582782443,2.16,160.83,160.82,0.04225307]
[1762582782840,5.5999,160.81,160.73,8.5224]
[1762582783042,2.17,160.8,160.74,2.92]
[1762582783840,0.03917943,160.79,160.75,0.0419642]
[1762582784139,0.03917943,160.79,160.76,2.92]
[1762582786247,136.21,160.88,160.77,4.16]
[1762582786541,5.5981,160.86,160.78,2.92]
[1762582786839,141.8074,160.88,160.81,2.92]
[1762582787032,0.04765396,160.86,160.84,2.92]
[1762582787236,0.04022063,160.87,160.84,2.92]
[1762582788746,2.25022063,160.87,160.84,2.92]
[1762582788947,2.25022063,160.87,160.83,2.96504228]
[1762582791838,0.04022063,160.87,160.83,2.96504228]
[1762582792736,2.25022063,160.87,160.83,2.96504228]
[1762582793246,0.04022063,160.87,160.83,2.96504228]
[1762582795351,2.25022063,160.87,160.83,2.96504228]
[1762582795948,2.21,160.86,160.83,2.96504228]
[1762582797150,2.21,160.86,160.83,0.04504228]
[1762582797656,2.21,160.84,160.83,0.04504228]
[1762582804056,0.04022063,160.87,160.83,3.03504228]
[1762582804057,7.83802063,160.87,160.83,3.03504228]
[1762582806555,0.04022063,160.87,160.83,3.03504228]
[1762582808448,0.04022063,160.87,160.84,8.5885]
[1762582808653,0.04022063,160.87,160.85,2.99]
[1762582809958,0.04022063,160.87,160.86,2.99]
[1762582813062,2.2,160.96,160.86,2.99]
[1762582813961,2.25,160.93,160.86,2.99]
[1762582814159,2.29764518,160.93,160.89,0.04309436]
[1762582814563,5.5964,160.91,160.89,0.04309436]
[1762582814762,7.8464,160.91,160.89,0.04309436]
[1762582814962,2.25,160.9,160.89,0.04309436]
[1762582815164,7.8464,160.91,160.89,0.04309436]
[1762582815864,2.25,160.9,160.89,0.04309436]
[1762582817657,3.49,160.9,160.89,0.04309436]
[1762582817862,2.25,160.9,160.89,0.04309436]
[1762582818966,3.49,160.9,160.89,0.04309436]
[1762582819160,2.25,160.87,160.83,2.99]
[1762582820166,2.29121716,160.87,160.83,3.03295615]
[1762582821059,7.88901716,160.87,160.83,3.03295615]
[1762582823062,2.29121716,160.87,160.83,3.03295615]
[1762582824967,0.04121716,160.87,160.83,3.03295615]
[1762582825865,0.04121716,160.87,160.85,2.99]
[1762582826972,5.5958,160.93,160.86,2.99]
[1762582827272,2.29,160.95,160.86,2.99]
[1762582828071,5.63700757,160.92,160.89,3.03555785]
[1762582829068,0.04100757,160.92,160.89,3.03555785]
[1762582830667,0.04100757,160.92,160.89,8.63235785]
[1762582830873,0.04100757,160.92,160.9,2.99]
[1762582831970,2.33100757,160.92,160.89,0.04555785]
[1762582833173,2.29,160.9,160.89,0.04555785]
[1762582834480,7.8864,160.91,160.89,0.04555785]
[1762582834775,2.29,160.91,160.89,0.04555785]
[1762582835676,0.04100757,160.92,160.89,2.95555785]
[1762582839281,0.04100757,160.92,160.9,2.91]
[1762582843879,134.0,160.99,160.9,2.91]
[1762582844372,1.81346173,161.0,160.94,2.99]
[1762582844881,0.04374637,160.99,160.96,2.99]
[1762582846677,2.37374637,160.99,160.96,2.99]
[1762582847282,0.04374637,160.99,160.96,2.99]
[1762582848375,2.37374637,160.99,160.96,2.99]
[1762582849176,2.37374637,160.99,160.95,0.04089716]
[1762582849381,2.37374637,160.99,160.95,3.03089716]
[1762582849686,4.14346173,160.97,160.95,0.04089716]
[1762582850381,2.33,160.96,160.95,0.04089716]
[1762582850772,1.81346173,160.97,160.95,0.04089716]
[1762582850773,4.14346173,160.97,160.95,0.04089716]
[1762582851681,2.33,160.96,160.95,0.04089716]
[1762582856087,2.33,160.94,160.9,2.99]
[1762582856388,4.14346173,160.93,160.9,2.99]
[1762582857187,4.19106629,160.93,160.9,3.03165058]
[1762582858290,1.86106629,160.93,160.9,3.03165058]
[1762582859287,0.04760456,160.93,160.9,3.03165058]
[1762582860789,0.04760456,160.93,160.92,2.99]
[1762582861491,1.81346173,160.98,160.94,2.99]
[1762582861791,135.81346173,161.01,160.94,2.99]
[1762582862194,135.81346173,161.01,160.96,2.99]
[1762582862387,0.0408048,161.0,160.97,0.04335953]
[1762582862590,5.6341048,161.0,160.97,0.04335953]
[1762582862798,0.0408048,161.0,160.97,2.92335953]
[1762582868093,2.3508048,161.0,160.97,2.92335953]
[1762582869998,0.0408048,161.0,160.97,2.92335953]
[1762582873805,2.31,160.99,160.97,2.92335953]
[1762582874006,4.12346173,160.98,160.97,0.04335953]
[1762582874307,1.81346173,160.98,160.97,0.04335953]
[1762582875806,7.44756653,161.0,160.97,2.92335953]
[1762582876001,9.75756653,161.0,160.97,2.92335953]
[1762582876200,2.31,160.99,160.97,0.04335953]
[1762582879611,4.16426653,161.0,160.97,2.92335953]
[1762582880410,1.85426653,161.0,160.97,2.92335953]
[1762582881214,0.0408048,161.0,160.97,2.92335953]
[1762582883007,0.0408048,161.0,160.99,2.88]
[1762582885804,1.81346173,161.04,161.0,2.88]
[1762582886711,1.81346173,161.04,161.0,2.92587662]
[1762582888312,4.12346173,161.04,161.0,2.92587662]
[1762582888513,1.81346173,161.04,161.0,2.92587662]
[1762582889411,4.12346173,161.04,161.0,2.92587662]
[1762582890611,1.81346173,161.04,161.0,2.92587662]
[1762582891011,4.12346173,161.04,161.0,2.92587662]
[1762582891812,2.31,161.03,161.0,0.04587662]
[1762582892018,2.31,161.03,161.0,2.92587662]
[1762582895102,1.81346173,161.04,161.0,2.92587662]
[1762582896215,4.13346173,161.04,161.0,2.92587662]
[1762582902815,2.32,161.03,161.0,2.92587662]
[1762582903014,4.13346173,161.04,161.0,2.92587662]
[1762582904421,3.40081247,161.07,161.0,2.92587662]
[1762582904918,8.99171247,161.07,161.02,3.16]
[1762582905118,7.9109,161.07,161.02,3.16]
[1762582905714,2.32,161.1,161.03,3.16]
[1762582905913,5.7198731,161.13,161.0,0.04587662]
[1762582905914,2.32,161.12,161.06,3.16]
[1762582906627,2.32,161.11,161.07,3.16]
[1762582907714,1.0804769,161.13,161.07,3.16]
[1762582908018,1.0804769,161.13,160.99,11.49079542]
[1762582908019,2.32,161.18,161.09,3.16]
[1762582908216,3.40014154,161.18,161.1,3.16]
[1762582908418,2.32,161.17,161.13,3.16]
[1762582908818,2.32,161.17,161.12,3.20773941]
[1762582913127,7.9063,161.2,161.12,3.20773941]
[1762582914520,2.32,161.19,161.12,3.20773941]
[1762582914724,2.32,161.18,161.12,3.20773941]
[1762582915338,3.39994042,161.21,161.13,3.16]
[1762582915534,2.32,161.2,161.15,3.20729373]
[1762582915833,2.32,161.2,161.16,0.04550141]
[1762582917834,2.32,161.2,161.16,3.20550141]
[1762582920344,2.32,161.24,161.16,3.20550141]
[1762582920539,2.32,161.24,161.16,3.16]
[1762582920847,2.32,161.23,161.18,3.20273335]
[1762582922150,1.07972262,161.24,161.18,3.20273335]
[1762582924347,2.32,161.26,161.18,3.20273335]
[1762582924550,3.39952166,161.26,161.18,3.20273335]
[1762582924753,2.32,161.25,161.18,3.20273335]
[1762582925351,2.32,161.28,161.19,3.16]
[1762582925553,2.32,161.28,161.22,0.04207922]
[1762582925850,2.32,161.27,161.22,3.20207922]
[1762582926145,2.32,161.27,161.22,0.04207922]
[1762582926346,7.904,161.27,161.22,0.04207922]
[1762582926550,2.32,161.26,161.22,3.20207922]
[1762582929145,5.584,161.27,161.22,3.20207922]
[1762582929346,7.904,161.27,161.22,3.20207922]
[1762582929747,2.32,161.26,161.22,3.20207922]
[1762582930351,2.32,161.25,161.22,0.04207922]
[1762582931457,7.9048,161.25,161.22,0.04207922]
[1762582931654,2.32,161.24,161.22,0.04207922]
[1762582932760,2.32,161.23,161.22,0.04207922]
[1762582935260,2.32,161.26,161.23,3.16]
[1762582936963,2.32,161.25,161.22,0.04207922]
[1762582937349,2.32,161.24,161.22,0.04207922]
[1762582937860,2.32,161.23,161.22,0.04207922]
[1762582940167,1.07947143,161.28,161.22,3.20207922]
[1762582940561,2.32,161.27,161.22,3.20207922]
[1762582941169,2.32,161.27,161.22,0.04207922]
[1762582941465,3.90941326,161.28,161.22,0.04207922]
[1762582941466,2.32,161.23,161.22,0.00127442]
[1762582945269,2.32,161.21,161.14,3.16]
[1762582945455,5.14994183,161.21,161.14,3.16]
[1762582946057,2.32,161.18,161.1,3.16]
[1762582946461,0.03971968,161.16,161.12,3.20684664]
[1762582951173,2.35971968,161.16,161.12,3.20684664]
[1762582952168,0.03971968,161.16,161.12,3.20684664]
[1762582955670,0.03971968,161.16,161.13,2.96]
[1762582956474,139.14994183,161.25,161.15,2.96]
[1762582956980,2.32,161.24,161.15,2.96]
[1762582957182,7.9057,161.22,161.15,2.96]
[1762582957367,2.32,161.22,161.17,2.99952868]
[1762582957567,2.32,161.22,161.17,0.03952868]
[1762582957568,2.32,161.18,161.17,0.03952868]
[1762582957774,2.32,161.21,161.17,0.03952868]
[1762582957981,2.32,161.21,161.17,2.99952868]
[1762582958672,2.32,161.2,161.17,2.99952868]
[1762582958878,2.32,161.2,161.17,0.03952868]
[1762582959478,2.32,161.19,161.17,0.03952868]
[1762582962883,2.32,161.18,161.17,0.03952868]
[1762582963075,5.14994183,161.18,161.17,0.03952868]
[1762582963478,2.32,161.16,161.11,2.96]
[1762582964091,2.32,161.15,161.1,8.69157407]
[1762582964277,2.32,161.15,161.11,5.73157407]
[1762582964479,2.36764387,161.15,161.11,0.04478336]
[1762582965286,2.36764387,161.15,161.11,3.00478336]
[1762582966387,4.17684497,161.15,161.11,3.00478336]
[1762582966589,2.32,161.14,161.11,3.00478336]
[1762582967190,2.32,161.14,161.11,0.04478336]
[1762582968393,2.32,161.13,161.11,0.04478336]
[1762582968593,2.32,161.12,161.11,0.04478336]
[1762582970591,136.32,161.12,161.11,0.04478336]
[1762582971189,5.5897,161.1,161.05,2.96]
[1762582971396,4.1292011,161.09,161.05,2.96]
[1762582971596,2.32,161.08,161.05,2.96]
[1762582971897,2.32,161.08,161.02,2.96]
[1762582972281,0.0460104,161.07,161.04,2.96]
[1762582973691,2.3660104,161.07,161.04,2.96]
[1762582973896,0.0460104,161.07,161.04,2.96]
[1762582975793,2.3660104,161.07,161.04,2.96]
[1762582977298,2.3660104,161.07,161.03,3.0024527]
[1762582981493,2.32,161.06,161.03,0.0424527]
[1762582982200,2.32,161.04,161.03,0.0424527]
[1762582983096,4.1292011,161.04,161.03,0.0424527]
[1762582984097,1.8092011,161.04,161.03,0.0424527]
[1762582985098,4.1092011,161.04,161.03,0.0424527]
[1762582986406,2.3,161.04,161.03,0.0424527]
[1762582994914,2.3,161.01,160.96,2.89]
[1762582995112,2.3,160.99,160.96,2.89]
[1762582995314,2.3,160.99,160.93,2.89]
[1762582995610,7.8936,160.99,160.93,2.89]
[1762582996006,2.34343263,160.98,160.94,2.93677234]
[1762582998411,2.3,160.96,160.94,0.04677234]
[1762583000018,2.3,160.95,160.94,0.04677234]
[1762583002120,2.3,160.92,160.88,191.01908776]
[1762583002414,2.3,160.91,160.88,193.90908776]
[1762583002816,2.3,160.91,160.85,2.89]
[1762583003317,2.34719609,160.9,160.86,2.93174652]
[1762583003520,0.04719609,160.9,160.86,2.93174652]
[1762583009718,2.34719609,160.9,160.86,2.93174652]
[1762583011021,7.94399609,160.9,160.86,2.93174652]
[1762583011723,0.04719609,160.9,160.86,2.93174652]
[1762583018228,2.32,160.96,160.86,2.93174652]
[1762583018436,2.32,160.96,160.86,2.89]
[1762583019334,0.04393604,160.93,160.9,3.14]
[1762583019921,0.04393604,160.93,160.9,8.7364]
[1762583020229,0.04393604,160.93,160.91,3.14]
[1762583021534,0.04393604,160.93,160.92,3.14]
[1762583024528,138.1692011,161.01,160.95,3.04]
[1762583025427,2.40456106,161.0,160.96,3.08529762]
[1762583025738,2.36,160.99,160.96,3.08529762]
[1762583026033,2.36,160.97,160.96,0.04529762]
[1762583028137,5.594,160.98,160.96,0.04529762]
[1762583028335,7.954,160.98,160.96,0.04529762]
[1762583029438,7.954,160.98,160.96,3.08529762]
[1762583029439,2.36,160.98,160.96,3.08529762]
[1762583030541,5.63776106,161.0,160.96,3.08529762]
[1762583030542,0.04456106,161.0,160.96,3.08529762]
[1762583031537,2.40456106,161.0,160.96,3.08529762]
[1762583031938,7.9536,160.99,160.96,3.08529762]
[1762583032838,0.04456106,161.0,160.96,3.08529762]
[1762583034936,0.04456106,161.0,160.96,8.67969762]
[1762583035133,0.04456106,161.0,160.97,3.04]
[1762583035940,2.36,161.07,160.97,3.04]
[1762583036139,2.36,161.07,160.98,3.04]
[1762583036538,7.9513,161.06,160.99,3.04]
[1762583036938,0.04117337,161.04,161.01,0.0440904]
[1762583037241,0.04117337,161.04,161.01,3.0840904]
[1762583037437,2.40117337,161.04,161.01,3.0840904]
[1762583037645,2.40117337,161.04,161.01,0.0440904]
[1762583038542,7.9523,161.03,161.01,0.0440904]
[1762583039546,2.36,161.02,161.01,0.0440904]
[1762583047651,2.34,160.99,160.94,2.98]
[1762583047847,5.17297319,161.02,160.94,2.98]
[1762583048658,0.0449158,161.0,160.96,3.02056218]
[1762583051951,0.0449158,161.0,160.97,2.98]
[1762583052649,0.0449158,161.0,160.98,5.5937]
[1762583052851,0.0449158,161.0,160.99,2.98]
[1762583053558,5.5913,161.06,161.01,2.98]
[1762583053757,7.9313,161.06,161.01,2.98]
[1762583054257,142.42357319,161.08,161.02,2.98]
[1762583054457,139.17297319,161.08,161.02,2.98]
[1762583054658,2.38092064,161.07,161.03,3.0276617]
[1762583055451,2.38092064,161.07,161.03,0.0476617]
[1762583055452,2.34,161.06,161.03,0.0476617]
[1762583056255,2.34,161.06,161.03,3.0276617]
[1762583057559,7.9312,161.06,161.03,3.0276617]
[1762583057863,0.04092064,161.07,161.03,3.0276617]
[1762583060566,0.04092064,161.07,161.03,8.6195617]
[1762583060762,0.04092064,161.07,161.04,2.98]
[1762583062068,0.04092064,161.07,161.05,2.98]
[1762583062766,0.04092064,161.07,161.03,3.0276617]
[1762583062767,2.38092064,161.07,161.03,3.0276617]
[1762583063268,0.04092064,161.07,161.03,3.0276617]
[1762583066469,2.34,161.13,161.06,2.98]
[1762583066778,5.5884,161.14,161.06,2.98]
[1762583067264,5.5884,161.14,161.07,2.98]
[1762583067471,5.5884,161.14,161.1,2.98]
[1762583067667,7.9277,161.16,161.1,2.98]
[1762583075374,7.9377,161.16,161.1,2.98]
[1762583076575,5.5877,161.16,161.1,2.98]
[1762583077074,2.35,161.17,161.11,3.08]
[1762583077269,2.35,161.17,161.13,3.08]
[1762583078474,134.0,161.2,161.13,3.08]
[1762583078475,141.9363,161.2,161.13,3.08]
[1762583079180,7.9367,161.19,161.13,3.08]
[1762583079779,134.0,161.2,161.13,3.08]
[1762583079780,2.35,161.17,161.13,3.08]
[1762583080674,7.9374,161.17,161.13,3.08]
[1762583080979,2.35,161.17,161.13,3.08]
[1762583081379,136.35,161.2,161.13,3.08]
[1762583082283,7.9367,161.19,161.13,3.08]
[1762583085986,7.9367,161.19,161.13,8.6685]
[1762583086391,7.9367,161.19,161.14,3.05]
[1762583088481,9.74459001,161.19,161.14,3.05]
[1762583090102,2.35,161.18,161.14,3.05]
[1762583091289,2.35,161.17,161.14,3.05]
[1762583093892,4.15789001,161.19,161.14,3.05]
[1762583094199,2.35,161.18,161.14,3.05]
[1762583095589,1.80789001,161.2,161.15,3.05]
[1762583095795,1.80789001,161.2,161.17,3.05]
[1762583095995,4.15789001,161.2,161.17,3.05]
[1762583096196,9.74419001,161.2,161.17,3.05]
[1762583098300,5.5857,161.22,161.17,3.05]
[1762583098489,2.35,161.25,161.17,3.05]
[1762583098689,1.80789001,161.24,161.2,3.05]
[1762583098898,1.80789001,161.26,161.2,3.09538904]
[1762583099097,2.35,161.25,161.2,3.09538904]
[1762583099292,4.15789001,161.24,161.2,3.09538904]
[1762583100804,2.35,161.23,161.2,3.09538904]
[1762583103193,2.35,161.27,161.2,3.09538904]
[1762583103394,1.07947143,161.28,161.21,3.13]
[1762583103698,1.80789001,161.35,161.28,3.13]
[1762583103898,4.15789001,161.35,161.31,3.13]
[1762583104093,4.15789001,161.37,161.31,3.13]
[1762583104297,4.15789001,161.35,161.32,0.04528241]
[1762583104507,4.15789001,161.33,161.32,0.04528241]
[1762583115510,2.35,161.31,161.28,3.13]
[1762583115712,4.15789001,161.31,161.28,3.13]
[1762583116510,4.20145073,161.31,161.28,3.17362844]
[1762583117003,0.04356072,161.31,161.28,3.17362844]
[1762583117703,0.04356072,161.31,161.28,8.75692844]
[1762583117902,0.04356072,161.31,161.29,3.13]
[1762583118804,3.42876872,161.38,161.3,3.13]
[1762583119006,2.35,161.38,161.3,3.13]
[1762583119405,2.35,161.38,161.3,8.7126]
[1762583119611,2.35,161.38,161.31,3.13]
[1762583120014,2.35,161.38,161.34,3.13]
[1762583123710,1.80789001,161.43,161.34,3.13]
[1762583123913,4.15789001,161.44,161.38,3.13]
[1762583124416,4.15789001,161.44,161.39,3.13]
[1762583124810,1.80789001,161.44,161.39,3.13]
[1762583125110,4.15789001,161.44,161.39,3.13]
[1762583127617,2.35,161.43,161.39,3.13]
[1762583133317,2.35,161.42,161.37,3.11094872]
[1762583133722,2.35,161.4,161.37,3.11094872]
[1762583134016,2.35,161.4,161.37,3.11291446]
[1762583135921,7.9295,161.4,161.37,0.04291446]
[1762583136126,2.35,161.38,161.37,0.04291446]
[1762583136331,2.35,161.38,161.36,0.04379229]
[1762583137128,4.15789001,161.37,161.36,0.04379229]
[1762583138026,4.15789001,161.37,161.36,0.00323827]
[1762583138425,2.35,161.34,161.25,3.07]
[1762583138622,4.15789001,161.31,161.25,3.07]
[1762583139324,4.15789001,161.31,161.18,5.71885996]
[1762583139325,1.80789001,161.29,161.26,3.11696146]
[1762583139528,0.0438796,161.29,161.26,3.11696146]
[1762583141628,0.0438796,161.29,161.28,3.07]
[1762583142028,1.80789001,161.35,161.31,2.91]
[1762583142533,4.15789001,161.35,161.31,2.91]
[1762583143033,4.15789001,161.35,161.31,2.95230381]
[1762583143835,2.35,161.34,161.31,0.04230381]
[1762583144033,134.0,161.4,161.31,0.04230381]
[1762583144034,4.15789001,161.33,161.31,0.04230381]
[1762583145235,2.35,161.32,161.31,0.04230381]
[1762583152735,2.35,161.3,161.25,2.91]
[1762583153537,2.39027366,161.29,161.26,0.04197347]
[1762583155544,5.17062586,161.27,161.26,0.04197347]
[1762583161152,2.35,161.27,161.26,0.04197347]
[1762583164455,2.35,161.24,161.19,3.07]
[1762583165148,2.35,161.23,161.19,3.07]
[1762583165453,2.39382629,161.23,161.19,3.11133871]
[1762583168149,0.04382629,161.23,161.19,3.11133871]
[1762583169557,2.39382629,161.23,161.19,3.11133871]
[1762583170758,2.39382629,161.23,161.19,0.04133871]
[1762583171851,5.586,161.21,161.19,0.04133871]
[1762583172056,2.35,161.2,161.19,0.04133871]
[1762583173863,2.35,161.22,161.19,0.04133871]
[1762583174063,2.35,161.22,161.19,3.11133871]
[1762583175756,5.62922629,161.23,161.19,3.11133871]
[1762583175957,2.35,161.22,161.19,3.11133871]
[1762583176157,2.35,161.2,161.19,0.04133871]
[1762583178363,2.35,161.17,161.13,3.07]
[1762583178960,2.35,161.16,161.13,3.07]
[1762583179361,2.39562827,161.16,161.13,3.11601359]
[1762583179962,0.04562827,161.16,161.13,3.11601359]
[1762583181058,0.04562827,161.16,161.13,8.70441359]
[1762583181265,0.04562827,161.16,161.13,3.11601359]
[1762583182160,0.04562827,161.16,161.15,3.07]
[1762583182364,5.5861,161.21,161.15,3.07]
[1762583183372,0.04562291,161.2,161.17,3.07]
[1762583186874,2.39562291,161.2,161.16,0.04157684]
[1762583188068,7.9368,161.19,161.16,0.04157684]
[1762583188368,2.35,161.18,161.16,0.04157684]
[1762583191386,7.937,161.18,161.16,0.04157684]
[1762583191981,2.35,161.17,161.16,0.04157684]
[1762583194681,2.35,161.17,161.09,5.71885996]
[1762583194682,2.36,161.15,161.11,2.94]
[1762583195476,2.36,161.14,161.11,2.94]
[1762583195791,2.39923804,161.14,161.11,2.98127693]